[Event "CAMPEONATO NACIONAL ABSOLUTO DE CHILE 2019"]
[Site "Torre ENTEL, Chile"]
[Date "2019.02.20"]
[Round "1.2"]
[White "Torres Bravo, Cristobal"]
[Black "Salinas Herrera, Pablo"]
[Result "0-1"]
[TimeControl "90 minutos mas 30 segundos incremento por movida"]
[WhiteTitle "FM"]
[BlackTitle "IM"]
[WhiteFideId "3405940"]
[BlackFideId "3407128"]
[WhiteElo "2347"]
[BlackElo "2477"]

1. d4 {[%clk 01:30:58]} {[%emt 00:00:01]} a6 {[%clk 01:30:54]} {[%emt
00:00:06]} 2. e4 {[%clk 01:29:48]} {[%emt 00:01:40]} g6 {[%clk 01:31:20]}
{[%emt 00:00:05]} 3. c4 {[%clk 01:29:25]} {[%emt 00:00:54]} Bg7 {[%clk
01:31:44]} {[%emt 00:00:05]} 4. Nc3 {[%clk 01:28:21]} {[%emt 00:01:34]} d6
{[%clk 01:32:10]} {[%emt 00:00:05]} 5. Be3 {[%clk 01:28:05]} {[%emt 00:00:46]}
Nd7 {[%clk 01:32:34]} {[%emt 00:00:06]} 6. h3 {[%clk 01:27:28]} {[%emt
00:01:07]} e5 {[%clk 01:32:50]} {[%emt 00:00:14]} 7. d5 {[%clk 01:27:14]}
{[%emt 00:00:43]} Bh6 {[%clk 01:28:13]} {[%emt 00:05:07]} 8. Bxh6 {[%clk
01:23:33]} {[%emt 00:04:11]} Nxh6 {[%clk 01:28:38]} {[%emt 00:00:05]} 9. Qd2
{[%clk 01:23:53]} {[%emt 00:00:10]} Ng8 {[%clk 01:29:02]} {[%emt 00:00:05]} 10.
Bd3 {[%clk 01:22:40]} {[%emt 00:01:43]} Ngf6 {[%clk 01:24:25]} {[%emt
00:05:07]} 11. Nge2 {[%clk 01:21:13]} {[%emt 00:01:57]} O-O {[%clk 01:23:32]}
{[%emt 00:01:23]} 12. g4 {[%clk 01:20:43]} {[%emt 00:01:00]} Kh8 {[%clk
01:17:46]} {[%emt 00:06:16]} 13. Ng3 {[%clk 01:20:10]} {[%emt 00:01:04]} Ng8
{[%clk 01:17:22]} {[%emt 00:00:54]} 14. h4 {[%clk 01:18:39]} {[%emt 00:02:00]}
Nc5 {[%clk 01:13:35]} {[%emt 00:04:18]} 15. Be2 {[%clk 01:14:29]} {[%emt
00:04:40]} a5 {[%clk 01:03:00]} {[%emt 00:11:05]} 16. O-O-O {[%clk 01:08:14]}
{[%emt 00:06:45]} Qf6 {[%clk 00:59:08]} {[%emt 00:04:21]} 17. f3 {[%clk
01:05:53]} {[%emt 00:02:51]} Qf4 {[%clk 00:58:23]} {[%emt 00:01:14]} 18. Rdg1
{[%clk 00:58:56]} {[%emt 00:07:27]} h6 {[%clk 00:56:39]} {[%emt 00:02:14]} 19.
Nf1 {[%clk 00:49:21]} {[%emt 00:10:08]} Qxd2+ {[%clk 00:52:19]} {[%emt
00:04:50]} 20. Kxd2 {[%clk 00:47:36]} {[%emt 00:02:15]} Bd7 {[%clk 00:52:42]}
{[%emt 00:00:07]} 21. Ne3 {[%clk 00:46:23]} {[%emt 00:01:43]} Ne7 {[%clk
00:51:00]} {[%emt 00:02:12]} 22. h5 {[%clk 00:41:31]} {[%emt 00:05:22]} Kg7
{[%clk 00:45:35]} {[%emt 00:05:55]} 23. b3 {[%clk 00:37:34]} {[%emt 00:04:28]}
Rfc8 {[%clk 00:36:02]} {[%emt 00:10:03]} 24. Rg2 {[%clk 00:35:38]} {[%emt
00:02:25]} Rh8 {[%clk 00:29:50]} {[%emt 00:06:42]} 25. Kc2 {[%clk 00:32:19]}
{[%emt 00:03:49]} Ng8 {[%clk 00:29:26]} {[%emt 00:00:54]} 26. Rhg1 {[%clk
00:29:12]} {[%emt 00:03:37]} Nf6 {[%clk 00:27:16]} {[%emt 00:02:40]} 27. hxg6
{[%clk 00:15:59]} {[%emt 00:13:43]} fxg6 {[%clk 00:27:35]} {[%emt 00:00:11]} 28.
Nb5 {[%clk 00:15:42]} {[%emt 00:00:47]} Rac8 {[%clk 00:25:31]} {[%emt
00:02:35]} 29. Na7 {[%clk 00:12:44]} {[%emt 00:03:28]} Rcf8 {[%clk 00:25:35]}
{[%emt 00:00:25]} 30. Nb5 {[%clk 00:12:47]} {[%emt 00:00:27]} Na6 {[%clk
00:26:01]} {[%emt 00:00:04]} 31. Kd2 {[%clk 00:11:22]} {[%emt 00:01:55]} Nh7
{[%clk 00:26:26]} {[%emt 00:00:04]} 32. Rg3 {[%clk 00:09:03]} {[%emt 00:02:50]}
Ng5 {[%clk 00:26:48]} {[%emt 00:00:08]} 33. Nd1 {[%clk 00:09:08]} {[%emt
00:00:24]} Rf6 {[%clk 00:26:47]} {[%emt 00:00:31]} 34. Nf2 {[%clk 00:07:51]}
{[%emt 00:01:47]} Rhf8 {[%clk 00:26:35]} {[%emt 00:00:41]} 35. Ke3 {[%clk
00:08:12]} {[%emt 00:00:10]} Nb4 {[%clk 00:19:39]} {[%emt 00:07:26]} 36. Nh3
{[%clk 00:02:05]} {[%emt 00:06:37]} Nxh3 {[%clk 00:16:38]} {[%emt 00:03:31]} 37.
Rxh3 {[%clk 00:02:33]} {[%emt 00:00:01]} c6 {[%clk 00:16:42]} {[%emt 00:00:26]}
38. g5 {[%clk 00:02:28]} {[%emt 00:00:35]} hxg5 {[%clk 00:16:39]} {[%emt
00:00:33]} 0-1

[Event "CAMPEONATO NACIONAL ABSOLUTO DE CHILE 2019"]
[Site "Torre ENTEL, Chile"]
[Date "2019.02.20"]
[Round "1.5"]
[White "Olivares Olivares, Claudio"]
[Black "Cuevas Araya, Walter"]
[Result "1-0"]
[TimeControl "90 minutos mas 30 segundos incremento por movida"]
[WhiteTitle "FM"]
[BlackTitle "FM"]
[WhiteFideId "3400786"]
[BlackFideId "3405028"]
[WhiteElo "2387"]
[BlackElo "2187"]

1. e4 {[%clk 01:30:57]} {[%emt 00:00:02]} e5 {[%clk 01:30:41]} {[%emt
00:00:20]} 2. Nf3 {[%clk 01:31:02]} {[%emt 00:00:25]} Nc6 {[%clk 01:30:33]}
{[%emt 00:00:38]} 3. Bb5 {[%clk 01:31:23]} {[%emt 00:00:08]} a6 {[%clk
01:30:51]} {[%emt 00:00:13]} 4. Ba4 {[%clk 01:31:47]} {[%emt 00:00:05]} Nf6
{[%clk 01:31:01]} {[%emt 00:00:21]} 5. O-O {[%clk 01:32:05]} {[%emt 00:00:11]}
Nxe4 {[%clk 01:29:47]} {[%emt 00:01:44]} 6. d4 {[%clk 01:30:39]} {[%emt
00:01:55]} b5 {[%clk 01:30:10]} {[%emt 00:00:09]} 7. Bb3 {[%clk 01:30:59]}
{[%emt 00:00:09]} d5 {[%clk 01:30:33]} {[%emt 00:00:08]} 8. dxe5 {[%clk
01:31:10]} {[%emt 00:00:18]} Be6 {[%clk 01:30:43]} {[%emt 00:00:20]} 9. c3
{[%clk 01:30:56]} {[%emt 00:00:44]} Bc5 {[%clk 01:30:08]} {[%emt 00:01:05]} 10.
Nbd2 {[%clk 01:31:15]} {[%emt 00:00:11]} O-O {[%clk 01:29:40]} {[%emt
00:00:59]} 11. Bc2 {[%clk 01:31:26]} {[%emt 00:00:18]} Nxf2 {[%clk 01:23:39]}
{[%emt 00:06:31]} 12. Rxf2 {[%clk 01:31:47]} {[%emt 00:00:08]} f6 {[%clk
01:24:03]} {[%emt 00:00:07]} 13. exf6 {[%clk 01:32:07]} {[%emt 00:00:10]} Bxf2+
{[%clk 01:23:11]} {[%emt 00:01:22]} 14. Kxf2 {[%clk 01:32:28]} {[%emt
00:00:08]} Qxf6 {[%clk 01:23:38]} {[%emt 00:00:04]} 15. Nf1 {[%clk 01:25:02]}
{[%emt 00:07:56]} Ne5 {[%clk 01:18:42]} {[%emt 00:05:26]} 16. Be3 {[%clk
01:22:24]} {[%emt 00:03:08]} Rae8 {[%clk 01:08:32]} {[%emt 00:10:40]} 17. Bc5
{[%clk 00:54:23]} {[%emt 00:28:30]} Qh4+ {[%clk 00:23:36]} {[%emt 00:45:29]} 18.
Kg1 {[%clk 00:54:35]} {[%emt 00:00:18]} Rxf3 {[%clk 00:23:58]} {[%emt
00:00:09]} 19. gxf3 {[%clk 00:52:44]} {[%emt 00:02:20]} Qh5 {[%clk 00:22:39]}
{[%emt 00:01:49]} 20. Nd2 {[%clk 00:47:10]} {[%emt 00:06:04]} Bh3 {[%clk
00:17:40]} {[%emt 00:05:30]} 21. Kh1 {[%clk 00:42:56]} {[%emt 00:04:43]} Nc4
{[%clk 00:10:14]} {[%emt 00:07:58]} 22. Bb3 {[%clk 00:34:14]} {[%emt 00:09:11]}
Nxd2 {[%clk 00:08:40]} {[%emt 00:02:03]} 23. Qxd2 {[%clk 00:34:38]} {[%emt
00:00:06]} Qxf3+ {[%clk 00:08:14]} {[%emt 00:00:57]} 24. Kg1 {[%clk 00:34:59]}
{[%emt 00:00:08]} Qg4+ {[%clk 00:04:27]} {[%emt 00:04:17]} 25. Kh1 {[%clk
00:35:20]} {[%emt 00:00:07]} Qe4+ {[%clk 00:04:09]} {[%emt 00:00:49]} 26. Kg1
{[%clk 00:35:38]} {[%emt 00:00:11]} Qg4+ {[%clk 00:01:34]} {[%emt 00:03:07]} 27.
Kh1 {[%clk 00:35:59]} {[%emt 00:00:08]} Qe4+ {[%clk 00:02:02]} {[%emt
00:00:02]} 28. Kg1 {[%clk 00:36:21]} {[%emt 00:00:08]} Qg6+ {[%clk 00:00:53]}
{[%emt 00:01:40]} 29. Kh1 {[%clk 00:36:41]} {[%emt 00:00:08]} Qe4+ {[%clk
00:00:52]} {[%emt 00:00:33]} 30. Kg1 {[%clk 00:37:03]} {[%emt 00:00:08]} Re5
{[%emt 00:00:40]} 31. Be3 {[%clk 00:07:18]} {[%emt 00:30:13]} Qg4+ {[%clk
00:00:51]} {[%emt 00:00:23]} 32. Kh1 {[%clk 00:07:27]} {[%emt 00:00:20]} Qf3+
{[%clk 00:01:00]} {[%emt 00:00:22]} 33. Kg1 {[%clk 00:07:49]} {[%emt 00:00:07]}
Qg4+ {[%clk 00:00:57]} {[%emt 00:00:34]} 34. Kh1 {[%clk 00:08:10]} {[%emt
00:00:09]} Qe4+ {[%clk 00:01:18]} {[%emt 00:00:09]} 35. Kg1 {[%clk 00:08:35]}
{[%emt 00:00:04]} Qg6+ {[%clk 00:00:47]} {[%emt 00:01:02]} 36. Kh1 {[%clk
00:08:54]} {[%emt 00:00:11]} Qe4+ {[%clk 00:00:48]} {[%emt 00:00:29]} 37. Kg1
{[%clk 00:09:18]} {[%emt 00:00:05]} Qg4+ {[%clk 00:00:48]} {[%emt 00:00:30]} 38.
Kh1 {[%clk 00:09:40]} {[%emt 00:00:07]} c6 {[%emt 00:00:50]} 1-0

[Event "CAMPEONATO NACIONAL ABSOLUTO DE CHILE 2019"]
[Site "Torre ENTEL, Chile"]
[Date "2019.02.21"]
[Round "2.3"]
[White "Abarca Gonzalez, Nicolas"]
[Black "Olivares Olivares, Claudio"]
[Result "1/2-1/2"]
[TimeControl "90 minutos mas 30 segundos incremento por movida"]
[BlackTitle "FM"]
[WhiteFideId "3409422"]
[BlackFideId "3400786"]
[WhiteElo "2418"]
[BlackElo "2387"]

1. Nf3 {[%clk 01:30:58]} {[%emt 00:00:01]} Nf6 {[%clk 01:30:53]} {[%emt
00:00:07]} 2. g3 {[%clk 01:31:23]} {[%emt 00:00:04]} g6 {[%clk 01:31:16]}
{[%emt 00:00:07]} 3. b3 {[%clk 01:31:49]} {[%emt 00:00:04]} Bg7 {[%clk
01:31:41]} {[%emt 00:00:05]} 4. Bb2 {[%clk 01:32:17]} {[%emt 00:00:03]} O-O
{[%clk 01:32:03]} {[%emt 00:00:08]} 5. Bg2 {[%clk 01:32:45]} {[%emt 00:00:02]}
c5 {[%clk 01:30:46]} {[%emt 00:01:46]} 6. c4 {[%clk 01:32:43]} {[%emt
00:00:32]} Nc6 {[%clk 01:30:59]} {[%emt 00:00:17]} 7. O-O {[%clk 01:32:25]}
{[%emt 00:00:49]} d6 {[%clk 01:31:22]} {[%emt 00:00:06]} 8. d4 {[%clk
01:29:11]} {[%emt 00:03:44]} Ne4 {[%clk 01:28:36]} {[%emt 00:03:16]} 9. e3
{[%clk 01:29:37]} {[%emt 00:00:04]} Qa5 {[%clk 01:10:27]} {[%emt 00:18:39]} 10.
a3 {[%clk 01:20:50]} {[%emt 00:09:18]} Bg4 {[%clk 01:05:55]} {[%emt 00:05:01]}
11. Qc2 {[%clk 01:21:03]} {[%emt 00:00:18]} Bxf3 {[%clk 00:59:57]} {[%emt
00:06:27]} 12. Bxf3 {[%clk 01:20:31]} {[%emt 00:01:02]} Ng5 {[%clk 01:00:00]}
{[%emt 00:00:27]} 13. Bxc6 {[%clk 01:05:39]} {[%emt 00:15:22]} bxc6 {[%clk
01:00:07]} {[%emt 00:00:23]} 14. h4 {[%clk 00:59:44]} {[%emt 00:06:26]} Ne6
{[%clk 00:58:19]} {[%emt 00:02:17]} 15. Bc3 {[%clk 00:59:43]} {[%emt 00:00:32]}
Qb6 {[%clk 00:55:08]} {[%emt 00:03:41]} 16. dxc5 {[%clk 00:59:06]} {[%emt
00:01:07]} Qxc5 {[%clk 00:55:01]} {[%emt 00:00:37]} 17. Bxg7 {[%clk 00:59:07]}
{[%emt 00:00:29]} Kxg7 {[%clk 00:51:38]} {[%emt 00:03:52]} 18. Nd2 {[%clk
00:58:19]} {[%emt 00:01:19]} Kg8 {[%clk 00:41:58]} {[%emt 00:10:09]} 19. b4
{[%clk 00:56:47]} {[%emt 00:02:03]} Qe5 {[%clk 00:39:55]} {[%emt 00:02:32]} 20.
Nb3 {[%clk 00:55:54]} {[%emt 00:01:23]} f5 {[%clk 00:28:36]} {[%emt 00:11:49]}
21. Rae1 {[%clk 00:50:59]} {[%emt 00:05:25]} Qf6 {[%clk 00:26:37]} {[%emt
00:02:29]} 22. f4 {[%clk 00:40:53]} {[%emt 00:10:36]} Ng7 {[%clk 00:26:32]}
{[%emt 00:00:34]} 23. c5 {[%clk 00:39:44]} {[%emt 00:01:39]} d5 {[%clk
00:25:47]} {[%emt 00:01:15]} 24. Nd4 {[%clk 00:40:04]} {[%emt 00:00:11]} Rac8
{[%clk 00:23:10]} {[%emt 00:03:07]} 25. Qb3 {[%clk 00:34:43]} {[%emt 00:05:51]}
e6 {[%clk 00:18:45]} {[%emt 00:04:55]} 26. Rc1 {[%clk 00:34:43]} {[%emt
00:00:30]} h6 {[%clk 00:17:15]} {[%emt 00:01:59]} 27. Nf3 {[%clk 00:33:28]}
{[%emt 00:01:45]} Nh5 {[%clk 00:16:46]} {[%emt 00:00:58]} 28. Kg2 {[%clk
00:33:49]} {[%emt 00:00:09]} Rf7 {[%clk 00:16:57]} {[%emt 00:00:19]} 29. a4
{[%clk 00:29:38]} {[%emt 00:04:42]} Qe7 {[%clk 00:16:30]} {[%emt 00:00:57]} 30.
Qb2 {[%clk 00:27:13]} {[%emt 00:02:54]} Nf6 {[%clk 00:16:36]} {[%emt 00:00:24]}
31. Qd4 {[%clk 00:27:33]} {[%emt 00:00:11]} Ne4 {[%clk 00:16:55]} {[%emt
00:00:11]} 32. Qe5 {[%clk 00:25:58]} {[%emt 00:02:06]} Nf6 {[%clk 00:09:54]}
{[%emt 00:07:31]} 33. Rc2 {[%clk 00:24:18]} {[%emt 00:02:11]} Rg7 {[%clk
00:08:14]} {[%emt 00:02:09]} 34. Rh1 {[%clk 00:21:43]} {[%emt 00:03:06]} Ne4
{[%clk 00:06:09]} {[%emt 00:02:34]} 35. Rh3 {[%clk 00:18:08]} {[%emt 00:04:05]}
Kf7 {[%clk 00:06:32]} {[%emt 00:00:07]} 36. Nd4 {[%clk 00:18:09]} {[%emt
00:00:30]} Nf6 {[%clk 00:06:03]} {[%emt 00:00:59]} 37. Nf3 {[%clk 00:14:46]}
{[%emt 00:03:53]} Rgg8 {[%clk 00:06:23]} {[%emt 00:00:10]} 38. Rh1 {[%clk
00:14:22]} {[%emt 00:00:55]} Ne4 {[%clk 00:06:42]} {[%emt 00:00:10]} 39. Qd4
{[%clk 00:14:31]} {[%emt 00:00:21]} Rg7 {[%clk 00:06:55]} {[%emt 00:00:17]} 40.
Rh3 {[%clk 00:14:28]} {[%emt 00:00:32]} Kg8 {[%clk 00:07:15]} {[%emt 00:00:11]}
41. Qe5 {[%clk 00:14:04]} {[%emt 00:00:54]} Kf7 {[%clk 00:07:37]} {[%emt
00:00:08]} 42. Nd4 {[%clk 00:10:01]} {[%emt 00:04:33]} Nf6 {[%clk 00:07:43]}
{[%emt 00:00:24]} 43. Nf3 {[%clk 00:10:12]} {[%emt 00:00:19]} Ne4 {[%emt
00:01:56]} 1/2-1/2

[Event "CAMPEONATO NACIONAL ABSOLUTO DE CHILE 2019"]
[Site "Torre ENTEL, Chile"]
[Date "2019.02.21"]
[Round "2.4"]
[White "Lopez Silva, Hugo"]
[Black "Garcia Cardenas, Pablo"]
[Result "1-0"]
[TimeControl "90 minutos mas 30 segundos incremento por movida"]
[WhiteTitle "IM"]
[BlackTitle "IM"]
[WhiteFideId "3403874"]
[BlackFideId "3406903"]
[WhiteElo "2413"]
[BlackElo "2449"]

1. e4 {[%clk 01:22:55]} {[%emt 00:08:04]} e5 {[%clk 01:30:55]} {[%emt
00:00:06]} 2. Nf3 {[%clk 01:21:56]} {[%emt 00:01:29]} Nc6 {[%clk 01:31:19]}
{[%emt 00:00:07]} 3. Bc4 {[%clk 01:21:56]} {[%emt 00:00:30]} Bc5 {[%clk
01:31:42]} {[%emt 00:00:07]} 4. c3 {[%clk 01:20:22]} {[%emt 00:02:03]} Nf6
{[%clk 01:32:06]} {[%emt 00:00:06]} 5. d3 {[%clk 01:20:50]} {[%emt 00:00:01]}
d6 {[%clk 01:31:38]} {[%emt 00:00:58]} 6. Nbd2 {[%clk 01:13:17]} {[%emt
00:08:02]} a6 {[%clk 01:29:23]} {[%emt 00:02:47]} 7. Bb3 {[%clk 01:13:39]}
{[%emt 00:00:08]} O-O {[%clk 01:24:23]} {[%emt 00:05:29]} 8. O-O {[%clk
01:11:03]} {[%emt 00:03:06]} Ba7 {[%clk 01:20:33]} {[%emt 00:04:21]} 9. h3
{[%clk 01:11:16]} {[%emt 00:00:17]} h6 {[%clk 01:20:38]} {[%emt 00:00:25]} 10.
Re1 {[%clk 01:11:37]} {[%emt 00:00:09]} Be6 {[%clk 01:20:14]} {[%emt 00:00:55]}
11. Bc2 {[%clk 01:11:42]} {[%emt 00:00:24]} Re8 {[%clk 01:20:37]} {[%emt
00:00:07]} 12. Nf1 {[%clk 01:12:01]} {[%emt 00:00:11]} d5 {[%clk 01:20:54]}
{[%emt 00:00:13]} 13. exd5 {[%clk 01:10:40]} {[%emt 00:01:50]} Bxd5 {[%clk
01:21:10]} {[%emt 00:00:15]} 14. Ng3 {[%clk 01:11:07]} {[%emt 00:00:03]} Qd7
{[%clk 01:20:37]} {[%emt 00:01:03]} 15. Be3 {[%clk 01:11:13]} {[%emt 00:00:23]}
Bxe3 {[%clk 01:16:14]} {[%emt 00:04:53]} 16. Rxe3 {[%clk 01:11:32]} {[%emt
00:00:11]} Rad8 {[%clk 00:53:44]} {[%emt 00:23:00]} 17. Qe2 {[%clk 01:11:22]}
{[%emt 00:00:39]} Qd6 {[%clk 00:46:36]} {[%emt 00:07:39]} 18. Re1 {[%clk
00:58:52]} {[%emt 00:13:00]} g6 {[%clk 00:44:47]} {[%emt 00:02:20]} 19. a3
{[%clk 00:53:38]} {[%emt 00:05:44]} Kg7 {[%clk 00:38:45]} {[%emt 00:06:31]} 20.
Nd2 {[%clk 00:32:52]} {[%emt 00:21:17]} Qd7 {[%clk 00:27:56]} {[%emt 00:11:19]}
21. Qf1 {[%clk 00:23:54]} {[%emt 00:09:27]} Be6 {[%clk 00:17:09]} {[%emt
00:11:17]} 22. Nf3 {[%clk 00:10:37]} {[%emt 00:13:47]} Nd5 {[%clk 00:16:13]}
{[%emt 00:01:26]} 23. Re4 {[%clk 00:08:57]} {[%emt 00:02:10]} f6 {[%clk
00:12:03]} {[%emt 00:04:40]} 24. d4 {[%clk 00:07:51]} {[%emt 00:01:36]} exd4
{[%clk 00:08:47]} {[%emt 00:03:46]} 25. Nxd4 {[%clk 00:06:35]} {[%emt
00:01:46]} Bf7 {[%clk 00:06:37]} {[%emt 00:02:41]} 26. Nf3 {[%clk 00:02:26]}
{[%emt 00:04:38]} f5 {[%clk 00:04:59]} {[%emt 00:02:08]} 27. Rxe8 {[%clk
00:02:07]} {[%emt 00:00:49]} Rxe8 {[%clk 00:05:27]} {[%emt 00:00:02]} 28. Rd1
{[%clk 00:02:28]} {[%emt 00:00:08]} Qe7 {[%clk 00:05:18]} {[%emt 00:00:39]} 29.
Bxf5 {[%clk 00:02:49]} {[%emt 00:00:10]} Nb6 {[%clk 00:02:47]} {[%emt
00:03:02]} 30. Re1 {[%clk 00:00:43]} {[%emt 00:02:36]} Qd6 {[%clk 00:01:51]}
{[%emt 00:01:26]} 31. Rxe8 {[%clk 00:00:44]} {[%emt 00:00:29]} Bxe8 {[%clk
00:02:19]} {[%emt 00:00:01]} 32. Qe2 {[%clk 00:00:59]} {[%emt 00:00:15]} Bf7
{[%clk 00:02:43]} {[%emt 00:00:06]} 33. Be4 {[%clk 00:01:00]} {[%emt 00:00:30]}
Bc4 {[%clk 00:02:18]} {[%emt 00:00:55]} 34. Qe3 {[%clk 00:00:59]} {[%emt
00:00:31]} Bd5 {[%clk 00:02:09]} {[%emt 00:00:39]} 35. Nh4 {[%clk 00:00:32]}
{[%emt 00:00:57]} Bxe4 {[%clk 00:01:32]} {[%emt 00:01:06]} 36. Qxe4 {[%clk
00:00:56]} {[%emt 00:00:06]} Qf6 {[%clk 00:01:22]} {[%emt 00:00:40]} 37. Nf3
{[%clk 00:00:39]} {[%emt 00:00:47]} Qe7 {[%clk 00:01:09]} {[%emt 00:00:43]} 38.
Qg4 {[%clk 00:00:42]} {[%emt 00:00:27]} Kh7 {[%clk 00:00:35]} {[%emt 00:01:05]}
39. h4 {[%clk 00:01:05]} {[%emt 00:00:06]} Ne5 {[%clk 00:00:54]} {[%emt
00:00:11]} 40. Nxe5 {[%clk 00:00:49]} {[%emt 00:00:47]} Qxe5 {[%clk 00:01:22]}
41. h5 {[%clk 00:01:11]} {[%emt 00:00:08]} g5 {[%clk 00:01:17]} {[%emt
00:00:35]} 42. Qf3 {[%clk 00:01:18]} {[%emt 00:00:23]} Qd5 {[%clk 00:01:32]}
{[%emt 00:00:15]} 43. Qf6 {[%clk 00:01:31]} {[%emt 00:00:17]} Qd6 {[%clk
00:01:27]} {[%emt 00:00:34]} 44. Qf7+ {[%clk 00:01:43]} {[%emt 00:00:18]} Kh8
{[%clk 00:01:56]} {[%emt 00:00:01]} 45. Qe8+ {[%clk 00:01:57]} {[%emt
00:00:16]} Kh7 {[%clk 00:02:21]} {[%emt 00:00:05]} 46. Qf7+ {[%clk 00:02:26]}
{[%emt 00:00:01]} Kh8 {[%clk 00:02:50]} {[%emt 00:00:01]} 47. Nf5 {[%clk
00:02:31]} {[%emt 00:00:25]} 1-0

[Event "CAMPEONATO NACIONAL ABSOLUTO DE CHILE 2019"]
[Site "Torre ENTEL, Chile"]
[Date "2019.02.21"]
[Round "2.5"]
[White "Salinas Herrera, Pablo"]
[Black "Vergara Jofre, Felipe"]
[Result "1/2-1/2"]
[TimeControl "90 minutos mas 30 segundos incremento por movida"]
[WhiteTitle "IM"]
[BlackTitle "FM"]
[WhiteFideId "3407128"]
[BlackFideId "3416291"]
[WhiteElo "2477"]
[BlackElo "2265"]

1. Nf3 {[%clk 01:30:57]} {[%emt 00:00:01]} Nf6 {[%clk 01:30:24]} {[%emt
00:00:37]} 2. b3 {[%clk 01:31:19]} {[%emt 00:00:08]} b6 {[%clk 01:23:24]}
{[%emt 00:07:30]} 3. g3 {[%clk 01:31:20]} {[%emt 00:00:28]} Bb7 {[%clk
01:23:49]} {[%emt 00:00:05]} 4. Bg2 {[%clk 01:31:47]} {[%emt 00:00:03]} e5
{[%clk 01:20:53]} {[%emt 00:03:26]} 5. O-O {[%clk 01:31:54]} {[%emt 00:00:22]}
e4 {[%clk 01:19:18]} {[%emt 00:02:05]} 6. Ne1 {[%clk 01:31:05]} {[%emt
00:01:19]} d5 {[%clk 01:11:37]} {[%emt 00:08:12]} 7. d3 {[%clk 01:28:11]}
{[%emt 00:03:23]} Bd6 {[%clk 01:05:55]} {[%emt 00:06:13]} 8. Bb2 {[%clk
01:26:33]} {[%emt 00:02:07]} Qe7 {[%clk 01:03:48]} {[%emt 00:02:37]} 9. c4
{[%clk 01:18:12]} {[%emt 00:08:51]} e3 {[%clk 00:58:53]} {[%emt 00:05:25]} 10.
Bxf6 {[%clk 01:12:40]} {[%emt 00:06:03]} exf2+ {[%clk 00:45:47]} {[%emt
00:13:37]} 11. Rxf2 {[%clk 01:13:01]} {[%emt 00:00:08]} gxf6 {[%clk 00:46:15]}
{[%emt 00:00:02]} 12. Nc3 {[%clk 01:09:21]} {[%emt 00:04:10]} h5 {[%clk
00:45:13]} {[%emt 00:01:32]} 13. Nxd5 {[%clk 01:06:42]} {[%emt 00:03:09]} Bxd5
{[%clk 00:45:34]} {[%emt 00:00:10]} 14. Bxd5 {[%clk 01:07:06]} {[%emt
00:00:04]} c6 {[%clk 00:45:35]} {[%emt 00:00:31]} 15. Bg2 {[%clk 00:50:58]}
{[%emt 00:16:37]} h4 {[%clk 00:44:29]} {[%emt 00:01:36]} 16. gxh4 {[%clk
00:48:30]} {[%emt 00:02:58]} Nd7 {[%clk 00:32:46]} {[%emt 00:12:13]} 17. d4
{[%clk 00:44:42]} {[%emt 00:04:19]} O-O-O {[%clk 00:27:35]} {[%emt 00:05:41]}
18. Qd3 {[%clk 00:44:49]} {[%emt 00:00:22]} Rxh4 {[%clk 00:22:16]} {[%emt
00:05:50]} 19. Qf3 {[%clk 00:45:00]} {[%emt 00:00:17]} Bxh2+ {[%clk 00:18:02]}
{[%emt 00:04:45]} 20. Kf1 {[%clk 00:45:22]} {[%emt 00:00:08]} Qd6 {[%clk
00:15:04]} {[%emt 00:03:29]} 21. Qxc6+ {[%clk 00:40:40]} {[%emt 00:05:12]} Qxc6
{[%clk 00:15:27]} {[%emt 00:00:07]} 22. Bxc6 {[%clk 00:41:08]} {[%emt
00:00:01]} Bg3 {[%clk 00:14:49]} {[%emt 00:01:08]} 23. Rf5 {[%clk 00:40:27]}
{[%emt 00:01:10]} Rxd4 {[%clk 00:11:01]} {[%emt 00:04:18]} 24. Bxd7+ {[%clk
00:39:31]} {[%emt 00:01:26]} Kxd7 {[%clk 00:06:48]} {[%emt 00:04:43]} 25. Nd3
{[%clk 00:38:29]} {[%emt 00:01:31]} Ke6 {[%clk 00:06:18]} {[%emt 00:01:00]} 26.
Rh5 {[%clk 00:37:43]} {[%emt 00:01:16]} Rg8 {[%clk 00:04:18]} {[%emt 00:02:30]}
27. Rd1 {[%clk 00:35:34]} {[%emt 00:02:39]} Rdg4 {[%clk 00:02:48]} {[%emt
00:02:01]} 28. Kg2 {[%clk 00:11:36]} {[%emt 00:24:28]} Be5+ {[%clk 00:03:11]}
{[%emt 00:00:07]} 29. Kh1 {[%clk 00:12:02]} {[%emt 00:00:03]} Re4 {[%clk
00:01:04]} {[%emt 00:02:37]} 30. Re1 {[%clk 00:07:12]} {[%emt 00:05:20]} Rg3
{[%clk 00:01:33]} {[%emt 00:00:01]} 31. Nf2 {[%clk 00:06:34]} {[%emt 00:01:07]}
Rf4 {[%emt 00:01:09]} 32. Nd3 {[%clk 00:06:59]} Re4 {[%clk 00:01:28]} 33. Nf2
{[%clk 00:07:08]} {[%emt 00:00:21]} Rf4 {[%clk 00:01:51]} {[%emt 00:00:08]} 34.
Nd3 {[%clk 00:07:29]} {[%emt 00:00:08]} 1/2-1/2